fUST/lending_fUST_20251204
["ID","MTS","AMOUNT","RATE_DAILY","PERIOD"]
[396214593,1764821432190,-250.0,0.0001398,2]
[396214594,1764821432199,-2579.17784983,0.0001398,2]
[396214595,1764821432209,-250.0,0.0001398,2]
[396214596,1764821432218,-250.0,0.0001398,2]
[396214597,1764821432228,-250.0,0.0001398,2]
[396214598,1764821432499,-250.0,0.0001398,2]
[396214599,1764821432533,-250.0,0.0001398,2]
[396214600,1764821432543,-300.0,0.00013987,2]
[396214601,1764821432552,-57861.3022808,0.00013988,2]
[396214602,1764821432564,-915.46936535,0.00013988,2]
[396214607,1764821438236,-498.8032675,0.00013988,2]
[396214608,1764821438289,-1069.1624148,0.00013988,2]
[396214609,1764821438395,-4281.25880143,0.00013988,2]
[396214616,1764821446259,-1255.23123063,0.00013935,2]
[396214617,1764822219266,174.863418,0.00030137,120]
[396214618,1764822431643,1499.89657627,0.000141,10]
[396214638,1764822632370,-150.0,0.0001364,2]
[396214639,1764822632382,-214.15681192,0.0001364,2]
[396214640,1764822632396,-47.84318808,0.0001364,2]
[396214641,1764822632407,-969.56322009,0.00013787,2]
[396214670,1764822638423,-1585.82792869,0.00013787,2]
[396214671,1764822638432,-5013.92174006,0.0001388,2]
[396214672,1764822638442,-200.0,0.0001388,2]
[396214673,1764822638451,-1079.93282003,0.0001388,2]
[396214674,1764822638463,-772.10094707,0.0001388,2]
[396214696,1764822640520,-727.14408273,0.0001388,2]
[396214698,1764822640530,-262.0,0.00013886,2]
[396214700,1764822640539,-363.28089295,0.00013886,2]
[396214898,1764822646817,-836.71910705,0.00013886,2]
[396214899,1764822646827,-536.45228564,0.00013887,2]
[396214900,1764822646838,-608.11491716,0.00013887,2]
[396214901,1764823171001,798.17,0.00032876,120]
[396214902,1764823191670,500.0,0.00032876,120]
[396214903,1764823443031,600.0,0.00032877,120]
[396214904,1764823453673,549.0,0.00032876,120]
[396214905,1764823535585,1011.94,0.0003287,120]
[396214931,1764823838557,-268.57,0.00011988,2]
[396214932,1764823838567,-248.0,0.00011988,2]
[396214933,1764823838577,-150.0,0.00012207,2]
[396214934,1764823838587,-1593.0,0.00013,2]
[396214935,1764823838597,-1145.22381245,0.00013686,2]
[396214936,1764823838664,-1090.74344275,0.00013686,2]
[396214937,1764823838673,-168.0,0.00013779,2]
[396214938,1764823838683,-241.25655725,0.0001378,2]
[396214959,1764823840638,-359.50100004,0.0001378,2]
[396215240,1764823846662,-1978.42029254,0.0001378,2]
[396215241,1764823846672,-200.0,0.0001378,2]
[396215242,1764823846681,-3810.83714242,0.0001378,2]
[396215298,1764823854014,-354.48000061,0.0001378,2]
[396215736,1764823936755,1000.0,0.0003287,120]
[396215737,1764824089071,800.0,0.0003287,120]
[396215738,1764824284060,500.0,0.00032876,120]
[396215739,1764824631781,162.0,0.000105,2]
[396215749,1764825031652,-187.99,0.00011988,2]
[396215750,1764825031662,-248.0,0.00011988,2]
[396215751,1764825031672,-150.0,0.00013634,2]
[396215752,1764825031682,-50000.0,0.00013683,2]
[396215753,1764825031691,-5013.92174006,0.00013684,2]
[396215754,1764825031701,-340.16832904,0.00013684,2]
[396215755,1764825031711,-827.81072581,0.00013684,2]
[396215756,1764825031721,-166.71162126,0.00013685,2]
[396215782,1764825037780,-98.77802334,0.00013685,2]
[396215783,1764825037790,-500.0,0.00013685,2]
[396215784,1764825037799,-500.0,0.00013685,2]
[396215785,1764825037808,-500.0,0.00013685,2]
[396215786,1764825037817,-500.0,0.00013685,2]
[396215787,1764825037826,-500.0,0.00013685,2]
[396215788,1764825037835,-500.0,0.00013685,2]
[396215790,1764825037843,-500.0,0.00013685,2]
[396215792,1764825037852,-500.0,0.00013685,2]
[396215794,1764825037861,-500.0,0.00013685,2]
[396215795,1764825037870,-500.0,0.00013685,2]
[396215796,1764825037879,-500.0,0.00013685,2]
[396215797,1764825037887,-500.0,0.00013685,2]
[396215798,1764825037896,-500.0,0.00013685,2]
[396215799,1764825037904,-500.0,0.00013685,2]
[396215800,1764825037913,-401.33347054,0.00013685,2]
[396215801,1764825037922,-500.0,0.00013685,2]
[396215802,1764825037931,-500.0,0.00013685,2]
[396215803,1764825037940,-500.0,0.00013685,2]
[396215804,1764825037949,-500.0,0.00013685,2]
[396215805,1764825037958,-500.0,0.00013685,2]
[396215806,1764825037966,-500.0,0.00013685,2]
[396215807,1764825037976,-500.0,0.00013685,2]
[396215808,1764825037986,-500.0,0.00013685,2]
[396215809,1764825037995,-500.0,0.00013685,2]
[396215810,1764825038004,-334.67868942,0.00013685,2]
[396215811,1764825038014,-151.0,0.00013686,2]
[396215812,1764825038024,-99697.56242276,0.00013686,2]
[396215813,1764825038036,-6146.25790288,0.00013686,2]
[396215814,1764825038047,-2960.73088,0.00013686,2]
[396215815,1764825038059,-1074.99956033,0.00013686,2]
[396215817,1764825040635,364.26935531,0.0001,2]
[396215821,1764825041137,-661.98869106,0.00013686,2]
[396215822,1764825041149,-675.61857851,0.00013686,2]
[396215830,1764825045905,-2366.46450234,0.00013686,2]
[396215834,1764825415542,223.6,0.000141,10]
[396215852,1764826131039,174.863418,0.00030137,120]
[396215895,1764826231793,-1358.19666423,0.00013408,2]
[396215901,1764826231852,-598.27468407,0.00013408,2]
[396215902,1764826231862,-640.38232381,0.00013482,2]
[396215903,1764826231874,-559.61767619,0.00013482,2]
[396215904,1764826231883,-185.84275122,0.00013483,2]
[396215905,1764826231892,-500.0,0.00013483,2]
[396215906,1764826231901,-500.0,0.00013483,2]
[396215907,1764826231910,-322.37038562,0.00013483,2]
[396215908,1764826231920,-267.78593319,0.00013483,2]
[396215909,1764826231930,-651.0,0.00013483,2]
[396215910,1764826231939,-300.0,0.00013483,2]
[396215911,1764826231949,-300.0,0.00013483,2]
[396215912,1764826231958,-300.0,0.00013483,2]
[396215913,1764826231967,-300.0,0.00013483,2]
[396215914,1764826231976,-261.0,0.00013483,2]
[396215915,1764826231985,-29619.48639859,0.00013484,2]
[396215916,1764826231996,-1483.25496354,0.00013484,2]
[396215917,1764826232007,-149654.35190109,0.00013484,2]
[396215918,1764826232028,-914.38714063,0.00013484,2]
[396215921,1764826238080,-50040.28837533,0.00013484,2]
[396215922,1764826238091,-4531.596537,0.00013484,2]
[396215923,1764826238191,-314.83229562,0.00013484,2]
[396215935,1764826240018,-1000.0,0.00013484,2]
[396215936,1764826240029,-6554.4,0.00013484,2]
[396215939,1764826243234,-911.75,0.00013484,2]
[396215944,1764826245978,-12120.0,0.00013484,2]
[396215945,1764826245990,-1060.13935512,0.00013484,2]
[396215946,1764826246090,-9867.80348597,0.00013484,2]
[396215983,1764827431984,-405.0,0.00012695,2]
[396215984,1764827431994,-255.0,0.00012823,2]
[396215985,1764827432003,-150.0,0.00012953,2]
[396215986,1764827432013,-52.84064076,0.00013382,2]
[396215987,1764827432024,-227.15935924,0.00013382,2]
[396215988,1764827432033,-300.0,0.00013382,2]
[396215989,1764827432043,-3.81461443,0.00013382,2]
[396215997,1764827438137,-248.1749554,0.00013248,2]
[396215998,1764827438147,-1196.18538557,0.00013382,2]
[396215999,1764827438157,-7113.23101202,0.00013383,2]
[396216000,1764827438198,-1483.08925498,0.00013383,2]
[396216001,1764827438209,-299.93499411,0.00013383,2]
[396216009,1764827440220,-495.62,0.00013383,2]
[396216018,1764827443991,-628.36256506,0.00013383,2]
[396216019,1764827444000,-281.33038268,0.00013383,2]
[396216020,1764827444010,-500.0,0.00013383,2]
[396216021,1764827444019,-500.0,0.00013383,2]
[396216022,1764827444028,-559.50392191,0.00013383,2]
[396216023,1764827444038,-500.0,0.00013383,2]
[396216024,1764827444047,-264.97600418,0.00013383,2]
[396216025,1764827444056,-500.0,0.00013383,2]
[396216026,1764827444066,-500.0,0.00013383,2]
[396216027,1764827444075,-500.0,0.00013383,2]
[396216028,1764827444084,-500.0,0.00013383,2]
[396216029,1764827444093,-249.99999999,0.00013383,2]
[396216030,1764827444102,-1540.21168058,0.00013384,2]
[396216057,1764827446131,-685.2987433,0.00013384,2]
[396216058,1764827653340,-150.0,0.00018082,7]
[396216068,1764827805411,637.35391784,0.00011,3]
[396216076,1764828095561,20100.0,0.00032877,120]
[396216861,1764828632244,-300.0,0.00012999,2]
[396216862,1764828632253,-300.0,0.00012999,2]
[396216864,1764828632262,-454.42585719,0.00012999,2]
[396216962,1764828635092,159.346416,0.00032877,120]
[396216991,1764828638447,-745.57414281,0.00012999,2]
[396216992,1764828638458,-5875.61962867,0.00013,2]
[396216993,1764828638471,-3595.52329851,0.00013,2]
[396216995,1764828638481,-196.93126788,0.00013283,2]
[396216996,1764828638491,-423.27821355,0.00013283,2]
[396216997,1764828638501,-37952.70966194,0.00013284,2]
[396216999,1764828638516,-1348.78,0.00013284,2]
[396217000,1764828638561,-72761.1345582,0.00013284,2]
[396217052,1764828640467,-3233.12680255,0.00013284,2]
[396217054,1764828640525,-337.10251974,0.00013284,2]
[396217055,1764828640535,-279.00225988,0.00013284,2]
[396217364,1764828643630,-5042.62598794,0.00013284,2]
[396217496,1764828646402,-161.86588003,0.00013283,2]
[396217497,1764828646412,-500.0,0.00013283,2]
[396217502,1764828646675,-500.0,0.00013283,2]
[396217503,1764828646709,-18560.96868685,0.00013284,2]
[396219202,1764829095285,689.7205644,0.0003287,120]
[396219203,1764829312798,3432.66,0.00032876,120]
[396219204,1764829457815,87010.21138472,0.0003287,120]
[396219223,1764829832336,-223.0315306,0.00013176,2]
[396219224,1764829832345,-500.0,0.00013176,2]
[396219225,1764829832355,-500.0,0.00013176,2]
[396219226,1764829832364,-251.24982018,0.00013176,2]
[396219227,1764829832396,-253.6095522,0.00013176,2]
[396219228,1764829832406,-530.85449279,0.00013176,2]
[396219229,1764829832416,-500.0,0.00013176,2]
[396219230,1764829832426,-562.34452074,0.00013176,2]
[396219231,1764829832435,-4042.92747744,0.00013176,2]
[396219232,1764829832447,-300.0,0.00013179,2]
[396219233,1764829832457,-300.0,0.00013179,2]
[396219234,1764829832467,-300.0,0.00013179,2]
[396219235,1764829832478,-910.0,0.00013179,2]
[396219236,1764829832487,-258.0,0.00013179,2]
[396219237,1764829832497,-150.0,0.00013179,2]
[396219238,1764829832506,-1200.0,0.0001318,2]
[396219239,1764829832515,-500.0,0.00013183,2]
[396219240,1764829832526,-251.15800353,0.00013183,2]
[396219241,1764829832537,-299399.36870351,0.00013184,2]
[396219246,1764829838492,-50000.0,0.00013179,2]
[396219247,1764829838501,-500.0,0.00013183,2]
[396219248,1764829838511,-500.0,0.00013183,2]
[396219249,1764829838521,-500.0,0.00013183,2]
[396219250,1764829838530,-500.0,0.00013183,2]
[396219251,1764829838540,-500.0,0.00013183,2]
[396219252,1764829838550,-533.79376395,0.00013183,2]
[396219253,1764829838559,-500.0,0.00013183,2]
[396219254,1764829838569,-500.0,0.00013183,2]
[396219255,1764829838579,-500.0,0.00013183,2]
[396219256,1764829838588,-500.0,0.00013183,2]
[396219257,1764829838598,-500.0,0.00013183,2]
[396219258,1764829838607,-500.0,0.00013183,2]
[396219260,1764829838617,-500.0,0.00013183,2]
[396219262,1764829838626,-500.0,0.00013183,2]
[396219263,1764829838635,-500.0,0.00013183,2]
[396219264,1764829838644,-472.88700179,0.00013183,2]
[396219265,1764829838653,-500.0,0.00013183,2]
[396219266,1764829838662,-500.0,0.00013183,2]
[396219267,1764829838671,-500.0,0.00013183,2]
[396219268,1764829838681,-500.0,0.00013183,2]
[396219270,1764829838690,-500.0,0.00013183,2]
[396219272,1764829838699,-500.0,0.00013183,2]
[396219274,1764829838708,-229.67715803,0.00013183,2]
[396219276,1764829838717,-500.0,0.00013183,2]
[396219278,1764829838726,-500.0,0.00013183,2]
[396219280,1764829838735,-500.0,0.00013183,2]
[396219282,1764829838744,-500.0,0.00013183,2]
[396219283,1764829838753,-500.0,0.00013183,2]
[396219284,1764829838763,-500.0,0.00013183,2]
[396219285,1764829838772,-500.0,0.00013183,2]
[396219286,1764829838781,-500.0,0.00013183,2]
[396219287,1764829838791,-500.0,0.00013183,2]
[396219288,1764829838800,-500.0,0.00013183,2]
[396219289,1764829838810,-500.0,0.00013183,2]
[396219290,1764829838819,-500.0,0.00013183,2]
[396219291,1764829838828,-500.0,0.00013183,2]
[396219292,1764829838837,-500.0,0.00013183,2]
[396219293,1764829838847,-162.81606719,0.00013183,2]
[396219294,1764829838857,-500.0,0.00013183,2]
[396219295,1764829838868,-500.0,0.00013183,2]
[396219296,1764829838879,-500.0,0.00013183,2]
[396219297,1764829838888,-590600.63129649,0.00013184,2]
[396219298,1764829838898,-151.0,0.00013184,2]
[396219299,1764829838908,-151.0,0.00013184,2]
[396219300,1764829838919,-151.0,0.00013184,2]
[396219301,1764829838929,-151.0,0.00013184,2]
[396219302,1764829838938,-287.867717,0.00013184,2]
[396219303,1764829838960,-287.867717,0.00013184,2]
[396219304,1764829838971,-287.867717,0.00013184,2]
[396219305,1764829838981,-287.867717,0.00013184,2]
[396219306,1764829838991,-595.329122,0.00013184,2]
[396219307,1764829839002,-595.329122,0.00013184,2]
[396219308,1764829839013,-595.329122,0.00013184,2]
[396219309,1764829839022,-595.329122,0.00013184,2]
[396219310,1764829839031,-250.949523,0.00013184,2]
[396219311,1764829839040,-250.949523,0.00013184,2]
[396219312,1764829839049,-250.949523,0.00013184,2]
[396219313,1764829839060,-250.949523,0.00013184,2]
[396219314,1764829839070,-151.0,0.00013184,2]
[396219315,1764829839084,-151.0,0.00013184,2]
[396219316,1764829839094,-198.517453,0.00013184,2]
[396219317,1764829839103,-198.517453,0.00013184,2]
[396219318,1764829839113,-198.517453,0.00013184,2]
[396219319,1764829839122,-198.517453,0.00013184,2]
[396219320,1764829839132,-622.353844,0.00013184,2]
[396219321,1764829839142,-622.353844,0.00013184,2]
[396219322,1764829839152,-622.353844,0.00013184,2]
[396219323,1764829839161,-622.353844,0.00013184,2]
[396219324,1764829839171,-151.0,0.00013184,2]
[396219325,1764829839181,-151.0,0.00013184,2]
[396219326,1764829839190,-151.0,0.00013184,2]
[396219327,1764829839200,-153.4795,0.00013184,2]
[396219328,1764829839209,-151.991899,0.00013184,2]
[396219329,1764829839219,-151.0,0.00013184,2]
[396219330,1764829839228,-151.0,0.00013184,2]
[396219331,1764829839238,-5844.495291,0.00013184,2]
[396219332,1764829839248,-5844.495291,0.00013184,2]
[396219333,1764829839258,-151.0,0.00013184,2]
[396219334,1764829839268,-151.0,0.00013184,2]
[396219335,1764829839277,-5844.495291,0.00013184,2]
[396219336,1764829839286,-5844.495291,0.00013184,2]
[396219337,1764829839295,-151.0,0.00013184,2]
[396219338,1764829839305,-151.0,0.00013184,2]
[396219339,1764829839314,-151.0,0.00013184,2]
[396219340,1764829839324,-151.0,0.00013184,2]
[396219341,1764829839333,-151.0,0.00013184,2]
[396219342,1764829839342,-1111.582249,0.00013184,2]
[396219343,1764829839351,-1111.582249,0.00013184,2]
[396219344,1764829839360,-627.449079,0.00013184,2]
[396219345,1764829839369,-1111.582249,0.00013184,2]
[396219346,1764829839379,-1111.582249,0.00013184,2]
[396219347,1764829839388,-627.449079,0.00013184,2]
[396219348,1764829839398,-1111.582249,0.00013184,2]
[396219349,1764829839407,-1111.582249,0.00013184,2]
[396219350,1764829839416,-627.449079,0.00013184,2]
[396219351,1764829839426,-1022.825924,0.00013184,2]
[396219352,1764829839436,-1022.825924,0.00013184,2]
[396219353,1764829839445,-1111.582249,0.00013184,2]
[396219354,1764829839454,-151.0,0.00013184,2]
[396219355,1764829839463,-1111.582249,0.00013184,2]
[396219356,1764829839472,-151.0,0.00013184,2]
[396219357,1764829839482,-627.449079,0.00013184,2]
[396219358,1764829839491,-1022.825924,0.00013184,2]
[396219359,1764829839501,-1022.825924,0.00013184,2]
[396219360,1764829839511,-151.0,0.00013184,2]
[396219361,1764829839521,-151.0,0.00013184,2]
[396219362,1764829839531,-1022.825924,0.00013184,2]
[396219363,1764829839540,-1022.825924,0.00013184,2]
[396219364,1764829839549,-1022.825924,0.00013184,2]
[396219365,1764829839558,-1022.825924,0.00013184,2]
[396219366,1764829839568,-4136.094387,0.00013184,2]
[396219367,1764829839577,-4136.094387,0.00013184,2]
[396219368,1764829839589,-4136.094387,0.00013184,2]
[396219369,1764829839599,-4136.094387,0.00013184,2]
[396219370,1764829839608,-4136.094387,0.00013184,2]
[396219371,1764829839617,-4136.094387,0.00013184,2]
[396219372,1764829839626,-4136.094387,0.00013184,2]
[396219373,1764829839635,-4136.094387,0.00013184,2]
[396219374,1764829839644,-151.0,0.00013184,2]
[396219375,1764829839654,-151.0,0.00013184,2]
[396219376,1764829839664,-151.0,0.00013184,2]
[396219377,1764829839673,-151.0,0.00013184,2]
[396219378,1764829839683,-3119.434582,0.00013184,2]
[396219379,1764829839693,-3119.434582,0.00013184,2]
[396219380,1764829839702,-3119.434582,0.00013184,2]
[396219381,1764829839712,-3119.434582,0.00013184,2]
[396219382,1764829839721,-3119.434582,0.00013184,2]
[396219383,1764829839730,-3119.434582,0.00013184,2]
[396219384,1764829839740,-3119.434582,0.00013184,2]
[396219385,1764829839750,-3119.434582,0.00013184,2]
[396219386,1764829839759,-157.998159,0.00013184,2]
[396219387,1764829839768,-151.0,0.00013184,2]
[396219388,1764829839778,-151.0,0.00013184,2]
[396219389,1764829839787,-151.0,0.00013184,2]
[396219390,1764829839797,-151.0,0.00013184,2]
[396219391,1764829839806,-151.0,0.00013184,2]
[396219392,1764829839816,-151.0,0.00013184,2]
[396219393,1764829839826,-151.0,0.00013184,2]
[396219394,1764829839835,-151.0,0.00013184,2]
[396219395,1764829839844,-151.0,0.00013184,2]
[396219396,1764829839854,-151.0,0.00013184,2]
[396219397,1764829839863,-151.0,0.00013184,2]
[396219398,1764829839873,-151.0,0.00013184,2]
[396219399,1764829839882,-151.0,0.00013184,2]
[396219400,1764829839892,-151.0,0.00013184,2]
[396219401,1764829839902,-151.0,0.00013184,2]
[396219402,1764829839913,-151.0,0.00013184,2]
[396219403,1764829839922,-151.0,0.00013184,2]
[396219404,1764829839931,-183.733527,0.00013184,2]
[396219405,1764829839944,-521.984572,0.00013184,2]
[396219406,1764829839953,-841.775015,0.00013184,2]
[396219407,1764829839963,-841.775015,0.00013184,2]
[396219408,1764829839972,-521.984572,0.00013184,2]
[396219409,1764829839981,-841.775015,0.00013184,2]
[396219410,1764829839990,-521.984572,0.00013184,2]
[396219411,1764829839999,-841.775015,0.00013184,2]
[396219412,1764829840008,-521.984572,0.00013184,2]
[396219413,1764829840017,-521.984572,0.00013184,2]
[396219420,1764829840326,-841.775015,0.00013184,2]
[396219421,1764829840336,-521.984572,0.00013184,2]
[396219422,1764829840345,-841.775015,0.00013184,2]
[396219423,1764829840354,-521.984572,0.00013184,2]
[396219424,1764829840364,-521.984572,0.00013184,2]
[396219426,1764829840373,-841.775015,0.00013184,2]
[396219428,1764829840383,-521.984572,0.00013184,2]
[396219430,1764829840392,-841.775015,0.00013184,2]
[396219432,1764829840402,-521.984572,0.00013184,2]
[396219434,1764829840411,-841.775015,0.00013184,2]
[396219435,1764829840421,-521.984572,0.00013184,2]
[396219436,1764829840431,-841.775015,0.00013184,2]
[396219439,1764829840440,-521.984572,0.00013184,2]
[396219441,1764829840450,-841.775015,0.00013184,2]
[396219443,1764829840459,-521.984572,0.00013184,2]
[396219444,1764829840468,-841.775015,0.00013184,2]
[396219446,1764829840478,-521.984572,0.00013184,2]
[396219448,1764829840487,-841.775015,0.00013184,2]
[396219451,1764829840498,-521.984572,0.00013184,2]
[396219453,1764829840507,-841.775015,0.00013184,2]
[396219455,1764829840517,-521.984572,0.00013184,2]
[396219457,1764829840526,-841.775015,0.00013184,2]
[396219459,1764829840536,-521.984572,0.00013184,2]
[396219461,1764829840545,-841.775015,0.00013184,2]
[396219463,1764829840554,-521.984572,0.00013184,2]
[396219465,1764829840563,-841.775015,0.00013184,2]
[396219467,1764829840572,-521.984572,0.00013184,2]
[396219469,1764829840581,-841.775015,0.00013184,2]
[396219471,1764829840590,-521.98458,0.00013184,2]
[396219473,1764829840600,-841.775015,0.00013184,2]
[396219475,1764829840609,-841.775015,0.00013184,2]
[396219477,1764829840618,-151.0,0.00013184,2]
[396219478,1764829840627,-151.0,0.00013184,2]
[396219479,1764829840636,-185.620175,0.00013184,2]
[396219481,1764829840646,-151.0,0.00013184,2]
[396219482,1764829840655,-185.620175,0.00013184,2]
[396219483,1764829840664,-250.346154,0.00013184,2]
[396219484,1764829840674,-185.620175,0.00013184,2]
[396219485,1764829840683,-185.620175,0.00013184,2]
[396219486,1764829840692,-185.620175,0.00013184,2]
[396219487,1764829840702,-185.620175,0.00013184,2]
[396219489,1764829840711,-151.0,0.00013184,2]
[396219491,1764829840721,-185.620175,0.00013184,2]
[396219493,1764829840730,-151.0,0.00013184,2]
[396219494,1764829840739,-185.620175,0.00013184,2]
[396219495,1764829840748,-151.0,0.00013184,2]
[396219496,1764829840757,-185.620175,0.00013184,2]
[396219497,1764829840767,-151.0,0.00013184,2]
[396219498,1764829840776,-185.620175,0.00013184,2]
[396219499,1764829840785,-151.0,0.00013184,2]
[396219500,1764829840794,-185.620175,0.00013184,2]
[396219501,1764829840803,-151.0,0.00013184,2]
[396219502,1764829840812,-185.620175,0.00013184,2]
[396219503,1764829840821,-151.0,0.00013184,2]
[396219504,1764829840831,-185.620175,0.00013184,2]
[396219505,1764829840840,-151.0,0.00013184,2]
[396219506,1764829840849,-151.0,0.00013184,2]
[396219507,1764829840859,-185.620175,0.00013184,2]
[396219508,1764829840868,-151.0,0.00013184,2]
[396219509,1764829840877,-185.620175,0.00013184,2]
[396219510,1764829840886,-197.591382,0.00013184,2]
[396219511,1764829840895,-185.620175,0.00013184,2]
[396219512,1764829840904,-185.620175,0.00013184,2]
[396219513,1764829840914,-185.620175,0.00013184,2]
[396219514,1764829840927,-185.620175,0.00013184,2]
[396219515,1764829840937,-185.620178,0.00013184,2]
[396219516,1764829840956,-151.0,0.00013184,2]
[396219517,1764829840967,-151.0,0.00013184,2]
[396219518,1764829840976,-257.120364,0.00013184,2]
[396219519,1764829840985,-3566.286144,0.00013184,2]
[396219520,1764829840995,-3566.286144,0.00013184,2]
[396219521,1764829841004,-3566.286144,0.00013184,2]
[396219522,1764829841014,-3566.286144,0.00013184,2]
[396219523,1764829841023,-3566.286144,0.00013184,2]
[396219524,1764829841032,-3566.286144,0.00013184,2]
[396219525,1764829841041,-3566.286144,0.00013184,2]
[396219526,1764829841051,-3566.286144,0.00013184,2]
[396219527,1764829841060,-3566.286144,0.00013184,2]
[396219528,1764829841070,-3566.286144,0.00013184,2]
[396219529,1764829841079,-3566.286144,0.00013184,2]
[396219530,1764829841089,-3566.286144,0.00013184,2]
[396219531,1764829841099,-3566.286144,0.00013184,2]
[396219532,1764829841108,-3566.286144,0.00013184,2]
[396219533,1764829841117,-3566.286144,0.00013184,2]
[396219534,1764829841126,-3566.286144,0.00013184,2]
[396219535,1764829841135,-3566.286144,0.00013184,2]
[396219536,1764829841144,-3566.286144,0.00013184,2]
[396219537,1764829841154,-3566.286144,0.00013184,2]
[396219538,1764829841165,-3566.286148,0.00013184,2]
[396219539,1764829841176,-151.0,0.00013184,2]
[396219540,1764829841186,-157.883415,0.00013184,2]
[396219541,1764829841195,-151.0,0.00013184,2]
[396219542,1764829841204,-151.0,0.00013184,2]
[396219543,1764829841214,-151.0,0.00013184,2]
[396219544,1764829841223,-151.0,0.00013184,2]
[396219545,1764829841234,-151.0,0.00013184,2]
[396219546,1764829841244,-151.0,0.00013184,2]
[396219547,1764829841254,-151.0,0.00013184,2]
[396219548,1764829841263,-151.0,0.00013184,2]
[396219549,1764829841272,-151.962497,0.00013184,2]
[396219550,1764829841281,-179.326255,0.00013184,2]
[396219551,1764829841290,-179.326255,0.00013184,2]
[396219552,1764829841300,-1165.296452,0.00013184,2]
[396219553,1764829841309,-179.326255,0.00013184,2]
[396219554,1764829841321,-1165.296452,0.00013184,2]
[396219555,1764829841330,-179.326255,0.00013184,2]
[396219556,1764829841339,-1165.296452,0.00013184,2]
[396219557,1764829841348,-151.0,0.00013184,2]
[396219558,1764829841357,-179.326255,0.00013184,2]
[396219559,1764829841366,-1165.296452,0.00013184,2]
[396219560,1764829841375,-158.491632,0.00013184,2]
[396219561,1764829841385,-179.326255,0.00013184,2]
[396219562,1764829841395,-1165.296452,0.00013184,2]
[396219563,1764829841404,-179.326255,0.00013184,2]
[396219564,1764829841413,-1165.296452,0.00013184,2]
[396219565,1764829841423,-179.326255,0.00013184,2]
[396219566,1764829841434,-1165.296452,0.00013184,2]
[396219567,1764829841443,-179.326255,0.00013184,2]
[396219568,1764829841452,-1165.296452,0.00013184,2]
[396219569,1764829841461,-179.326255,0.00013184,2]
[396219570,1764829841470,-1165.296452,0.00013184,2]
[396219571,1764829841479,-179.326255,0.00013184,2]
[396219572,1764829841490,-1165.296452,0.00013184,2]
[396219573,1764829841501,-179.326255,0.00013184,2]
[396219574,1764829841511,-1165.296452,0.00013184,2]
[396219575,1764829841522,-179.326255,0.00013184,2]
[396219576,1764829841531,-1165.296452,0.00013184,2]
[396219577,1764829841541,-179.326255,0.00013184,2]
[396219578,1764829841550,-1165.296452,0.00013184,2]
[396219579,1764829841559,-179.326255,0.00013184,2]
[396219580,1764829841568,-1165.296452,0.00013184,2]
[396219581,1764829841578,-179.326255,0.00013184,2]
[396219582,1764829841587,-1165.296452,0.00013184,2]
[396219583,1764829841596,-448.628255,0.00013184,2]
[396219584,1764829841605,-179.326255,0.00013184,2]
[396219585,1764829841615,-1165.296452,0.00013184,2]
[396219586,1764829841623,-448.628255,0.00013184,2]
[396219587,1764829841632,-179.326255,0.00013184,2]
[396219588,1764829841641,-1165.296452,0.00013184,2]
[396219589,1764829841650,-448.628255,0.00013184,2]
[396219590,1764829841658,-179.326255,0.00013184,2]
[396219591,1764829841667,-1165.296452,0.00013184,2]
[396219592,1764829841676,-448.628255,0.00013184,2]